fUST/lending_fUST_20241020
["ID","MTS","AMOUNT","RATE_DAILY","PERIOD"]
[340532413,1729419351578,-500.0,0.00027821,60]
[340532414,1729419351625,-500.0,0.00027821,60]
[340532415,1729419351671,-753.91,0.00027821,30]
[340532416,1729419351720,-500.0,0.00027821,60]
[340532417,1729419351773,-500.0,0.00027821,60]
[340532418,1729419351823,-500.0,0.00027821,60]
[340532419,1729419351873,-1373.45,0.00027821,60]
[340532420,1729419351920,-508.3530682,0.00027821,60]
[340532421,1729419351972,-239.97473601,0.00027821,60]
[340532422,1729419352021,-995.37,0.00027821,60]
[340532423,1729419352067,-500.0,0.00027821,60]
[340532424,1729419352115,-976.95,0.00027821,60]
[340532425,1729419352159,-500.0,0.00027821,60]
[340532426,1729419352205,-1536.79,0.00027821,60]
[340532427,1729419352251,-500.0,0.00027821,60]
[340532428,1729419352303,-505.60769069,0.00027821,60]
[340532429,1729419352355,-1834.09,0.00027821,60]
[340532430,1729419352401,-500.0,0.00027821,60]
[340532431,1729419352448,-642.12,0.00027821,60]
[340532432,1729419352497,-1283.19,0.00027821,60]
[340532433,1729419352546,-500.0,0.00027821,60]
[340532434,1729419352592,-722.3,0.00027821,60]
[340532435,1729419352639,-522.46928095,0.00027821,60]
[340532436,1729419352687,-545.49,0.00027821,60]
[340532437,1729419352741,-517.65553218,0.00027821,60]
[340532438,1729419352787,-500.0,0.00027821,60]
[340532439,1729419352834,-327.61009653,0.00027821,60]
[340532440,1729419352881,-500.0,0.00027821,60]
[340532441,1729419352930,-816.19,0.00027821,60]
[340532442,1729419352975,-500.0,0.00027821,60]
[340532443,1729419353024,-509.61405404,0.00027821,60]
[340532444,1729419353074,-998.04,0.00027821,60]
[340532445,1729419353125,-715.54,0.00027821,60]
[340532446,1729419353175,-500.0,0.00027821,60]
[340532447,1729419353227,-500.0,0.00027821,60]
[340532448,1729419353278,-653.44,0.00027821,60]
[340532449,1729419353331,-654.0,0.00027821,60]
[340532450,1729419353385,-610.06,0.00027821,60]
[340532451,1729419353438,-500.0,0.00027821,60]
[340532452,1729419353492,-500.0,0.00027821,60]
[340532453,1729419353542,-1313.1,0.00027821,60]
[340532454,1729419353592,-500.0,0.00027821,60]
[340532455,1729419353643,-1128.8,0.00027821,60]
[340532456,1729419353692,-500.0,0.00027821,60]
[340532457,1729419353742,-705.62,0.00027821,60]
[340532458,1729419353797,-512.34953391,0.00027821,60]
[340532459,1729419353848,-500.0,0.00027821,60]
[340532460,1729419353898,-500.0,0.00027821,60]
[340532461,1729419353948,-1017.0,0.00027821,60]
[340532462,1729419353996,-2422.71,0.00027821,60]
[340532463,1729419354046,-500.0,0.00027821,60]
[340532464,1729419354095,-500.0,0.00027821,60]
[340532465,1729419354143,-500.0,0.00027821,60]
[340532466,1729419354192,-793.37,0.00027821,60]
[340532467,1729419354241,-500.0,0.00027821,60]
[340532468,1729419354411,-1077.51,0.00027821,60]
[340532469,1729419354485,-1012.59,0.00027821,60]
[340532470,1729419354543,-500.0,0.00027821,60]
[340532471,1729419354594,-500.0,0.00027821,60]
[340532472,1729419354646,-500.0,0.00027821,60]
[340532473,1729419354696,-605.1,0.00027821,60]
[340532474,1729419354748,-597.1,0.00027821,60]
[340532475,1729419354797,-971.16,0.00027821,60]
[340532476,1729419354849,-1020.08,0.00027821,60]
[340532477,1729419354902,-916.34,0.00027821,60]
[340532478,1729419354955,-651.69,0.00027821,60]
[340532479,1729419355006,-718.76,0.00027821,60]
[340532480,1729419355059,-826.26,0.00027821,60]
[340532481,1729419355109,-500.0,0.00027821,60]
[340532482,1729419355163,-695.34,0.00027821,60]
[340532483,1729419355216,-522.44,0.00027821,60]
[340532484,1729419355273,-1103.17,0.00027821,60]
[340532485,1729419355325,-500.0,0.00027821,60]
[340532486,1729419355377,-500.0,0.00027821,60]
[340532487,1729419355428,-500.0,0.00027821,60]
[340532488,1729419355481,-500.0,0.00027821,60]
[340532489,1729419355535,-347.15164663,0.00027821,60]
[340532490,1729419355586,-500.0,0.00027821,60]
[340532491,1729419355638,-939.24,0.00027821,60]
[340532492,1729419355695,-1009.81,0.00027821,60]
[340532493,1729419355746,-500.0,0.00027821,30]
[340532494,1729419355793,-827.5,0.00027821,60]
[340532495,1729419355843,-1878.37,0.00027821,60]
[340532496,1729419355889,-924.24,0.00027821,60]
[340532497,1729419355934,-1033.03,0.00027821,60]
[340532498,1729419355981,-930.76,0.00027821,60]
[340532499,1729419356028,-500.0,0.00027821,60]
[340532500,1729419356074,-913.38,0.00027821,60]
[340532501,1729419356119,-348.90031514,0.00027821,60]
[340532502,1729419356167,-1075.72,0.00027821,60]
[340532503,1729419356214,-500.0,0.00027821,60]
[340532504,1729419356261,-933.71,0.00027821,60]
[340532505,1729419356308,-1942.87,0.00027821,60]
[340532506,1729419356354,-500.0,0.00027821,60]
[340532507,1729419356400,-683.73,0.00027821,60]
[340532508,1729419356448,-500.0,0.00027821,60]
[340532509,1729419356501,-285.64388041,0.00027821,60]
[340532510,1729419356552,-504.84765061,0.00027821,60]
[340532511,1729419356600,-500.0,0.00027821,60]
[340532512,1729419356650,-500.0,0.00027821,60]
[340532513,1729419356699,-692.24,0.00027821,60]
[340532514,1729419356747,-1952.53,0.00027821,30]
[340532515,1729419356796,-500.0,0.00027821,60]
[340532516,1729419356843,-262.73619692,0.00027821,60]
[340532517,1729419356892,-853.36,0.00027821,60]
[340532518,1729419356937,-1000.49,0.00027821,60]
[340532519,1729419356982,-711.37,0.00027821,60]
[340532520,1729419357031,-685.33,0.00027821,60]
[340532521,1729419357078,-949.34,0.00027821,60]
[340532522,1729419357122,-500.0,0.00027821,60]
[340532523,1729419357167,-965.19,0.00027821,60]
[340532524,1729419357216,-500.0,0.00027821,60]
[340532525,1729419357264,-531.76,0.00027821,60]
[340532526,1729419357309,-844.86,0.00027821,60]
[340532527,1729419357356,-500.0,0.00027821,60]
[340532528,1729419357404,-565.52359801,0.00027821,60]
[340532529,1729419357453,-1181.25,0.00027821,60]
[340532530,1729419357503,-500.0,0.00027821,60]
[340532531,1729419357550,-2310.58,0.00027821,60]
[340532532,1729419357601,-778.47,0.00027821,60]
[340532533,1729419357649,-500.0,0.00027821,60]
[340532534,1729419357700,-767.08,0.00027821,60]
[340532535,1729419357748,-828.5,0.00027821,60]
[340532536,1729419357798,-1125.04,0.00027821,60]
[340532537,1729419357846,-500.0,0.00027821,60]
[340532538,1729419358032,-500.0,0.00027821,60]
[340532539,1729419358082,-841.91,0.00027821,60]
[340532540,1729419358135,-612.09,0.00027821,60]
[340532541,1729419358183,-799.85,0.00027821,60]
[340532542,1729419358235,-500.0,0.00027821,60]
[340532543,1729419358285,-500.0,0.00027821,60]
[340532544,1729419358332,-500.0,0.00027821,60]
[340532545,1729419358379,-1212.9,0.00027821,60]
[340532546,1729419358424,-996.36,0.00027821,60]
[340532547,1729419358477,-988.73,0.00027821,60]
[340532548,1729419358532,-884.02,0.00027821,60]
[340532549,1729419358579,-944.68,0.00027821,60]
[340532550,1729419358625,-500.0,0.00027821,60]
[340532551,1729419358677,-715.93,0.00027821,60]
[340532552,1729419358725,-500.0,0.00027821,60]
[340532553,1729419358773,-500.0,0.00027821,60]
[340532554,1729419358816,-525.8,0.00027821,60]
[340532555,1729419358859,-500.0,0.00027821,60]
[340532556,1729419358905,-522.44270808,0.00027821,60]
[340532557,1729419358951,-2081.06,0.00027821,60]
[340532558,1729419358998,-500.0,0.00027821,60]
[340532559,1729419359045,-764.5,0.00027821,60]
[340532560,1729419359092,-519.29807736,0.00027821,60]
[340532561,1729419359140,-525.84832754,0.00027821,60]
[340532562,1729419359188,-500.0,0.00027821,60]
[340532563,1729419359239,-637.17821352,0.00027821,60]
[340532564,1729419359285,-500.0,0.00027821,60]
[340532565,1729419359332,-926.1,0.00027821,60]
[340532566,1729419359379,-500.0,0.00027821,60]
[340532567,1729419359426,-600.56642595,0.00027821,60]
[340532568,1729419359471,-500.0,0.00027821,60]
[340532569,1729419359521,-783.93,0.00027821,60]
[340532570,1729419359567,-685.1,0.00027821,60]
[340532571,1729419359614,-500.0,0.00027821,60]
[340532572,1729419359661,-500.0,0.00027821,60]
[340532573,1729419359709,-984.9,0.00027821,60]
[340532574,1729419359758,-500.0,0.00027821,60]
[340532575,1729419359815,-1543.19,0.00027821,60]
[340532576,1729419359867,-2057.47,0.00027821,60]
[340532577,1729419359920,-519.0629624,0.00027821,60]
[340532578,1729419359975,-998.64,0.00027821,60]
[340532579,1729419360030,-500.0,0.00027821,60]
[340532580,1729419360078,-500.0,0.00027821,60]
[340532581,1729419360127,-1248.6,0.00027821,60]
[340532582,1729419360178,-797.41,0.00027821,60]
[340532583,1729419360227,-2521.03,0.00027821,60]
[340532584,1729419360278,-919.91,0.00027821,60]
[340532585,1729419360328,-500.0,0.00027821,60]
[340532586,1729419360378,-500.0,0.00027821,60]
[340532587,1729419360428,-968.69,0.00027821,60]
[340532588,1729419360481,-1264.41,0.00027821,60]
[340532589,1729419360520,-922.77,0.00027821,60]
[340532590,1729419360555,-500.0,0.00027821,30]
[340532591,1729419360590,-639.78,0.00027821,60]
[340532592,1729419360623,-500.0,0.00027821,60]
[340532593,1729419360656,-971.31,0.00027821,60]
[340532594,1729419360689,-742.41,0.00027821,60]
[340532595,1729419360722,-659.15,0.00027821,60]
[340532596,1729419360755,-212.00259721,0.00027821,60]
[340532597,1729419360788,-916.09,0.00027821,60]
[340532598,1729419360825,-655.27,0.00027821,60]
[340532599,1729419360859,-500.0,0.00027821,60]
[340532600,1729419360893,-500.0,0.00027821,60]
[340532601,1729419360925,-308.32346358,0.00027821,60]
[340532602,1729419360957,-747.67,0.00027821,60]
[340532603,1729419360989,-814.82,0.00027821,60]
[340532604,1729419361022,-500.0,0.00027821,60]
[340532605,1729419361190,-46076.59,0.00027821,60]
[340532606,1729419361228,-508.4372791,0.00027821,60]
[340532607,1729419361265,-973.82,0.00027821,60]
[340532608,1729419361299,-500.0,0.00027821,60]
[340532609,1729419361333,-797.42,0.00027821,60]
[340532610,1729419361366,-786.44,0.00027821,60]
[340532611,1729419361399,-869.12,0.00027821,60]
[340532612,1729419361432,-558.67108565,0.00027821,60]
[340532613,1729419361467,-1119.9,0.00027821,60]
[340532614,1729419361502,-575.82,0.00027821,60]
[340532615,1729419361536,-600.4,0.00027821,60]
[340532616,1729419361571,-500.0,0.00027821,60]
[340532617,1729419361605,-1073.95,0.00027821,60]
[340532618,1729419361640,-500.0,0.00027821,60]
[340532619,1729419361674,-1271.39,0.00027821,60]
[340532620,1729419361706,-574.67,0.00027821,60]
[340532621,1729419361740,-903.44,0.00027821,60]
[340532622,1729419361773,-981.94,0.00027821,60]
[340532623,1729419361806,-500.0,0.00027821,60]
[340532624,1729419361839,-500.0,0.00027821,60]
[340532625,1729419361872,-500.0,0.00027821,60]
[340532626,1729419361905,-500.0,0.00027821,60]
[340532627,1729419361938,-698.05,0.00027821,60]
[340532628,1729419361971,-500.0,0.00027821,60]
[340532629,1729419362003,-500.0,0.00027821,60]
[340532630,1729419362037,-769.32,0.00027821,60]
[340532631,1729419362070,-1059.29,0.00027821,60]
[340532632,1729419362107,-552.61703594,0.00027821,60]
[340532633,1729419362141,-662.26,0.00027821,60]
[340532634,1729419362176,-929.83,0.00027821,60]
[340532635,1729419362213,-500.0,0.00027821,60]
[340532636,1729419362249,-635.77,0.00027821,60]
[340532637,1729419362286,-1739.44,0.00027821,60]
[340532638,1729419362322,-1013.68,0.00027821,60]
[340532639,1729419362362,-1255.57,0.00027821,60]
[340532640,1729419362398,-500.0,0.00027821,60]
[340532641,1729419362431,-1140.61,0.00027821,60]
[340532642,1729419362466,-500.0,0.00027821,60]
[340532643,1729419362502,-500.0,0.00027821,60]
[340532644,1729419362538,-500.0,0.00027821,60]
[340532645,1729419362573,-650.82,0.00027821,60]
[340532646,1729419362608,-826.88,0.00027821,60]
[340532647,1729419362642,-962.81,0.00027821,60]
[340532648,1729419362676,-517.37,0.00027821,60]
[340532649,1729419362712,-500.0,0.00027821,60]
[340532650,1729419362748,-468.70856789,0.00027821,60]
[340532651,1729419362782,-1508.26,0.00027821,60]
[340532652,1729419362817,-500.0,0.00027821,60]
[340532653,1729419362851,-1209.57,0.00027821,60]
[340532654,1729419362886,-3134.78,0.00027821,30]
[340532655,1729419362918,-390.52164518,0.00027821,60]
[340532656,1729419362953,-731.27,0.00027821,60]
[340532657,1729419362987,-176.72278722,0.00027821,60]
[340532658,1729419365428,-2905.03729337,0.00035985,120]
[340532659,1729419365469,-2522.99672461,0.00035985,120]
[340532660,1729419365510,-1449.47933542,0.00035985,120]
[340532661,1729419365548,-1464.59352429,0.00035985,60]
[340532662,1729419365584,-1367.11630387,0.00035985,30]
[340532663,1729419365619,-1578.37935183,0.00035985,32]
[340532664,1729419365653,-3256.21822948,0.00035985,120]
[340532665,1729419365688,-153.15715537,0.00035985,120]
[340532666,1729419365722,-1202.17390591,0.00035985,30]
[340532667,1729419365755,-2000.0,0.00035985,120]
[340532668,1729419365789,-1749.54303009,0.00035985,30]
[340532669,1729419365824,-1201.76977471,0.00035985,120]
[340532670,1729419365859,-979149.53537105,0.00035985,30]
[340532671,1729419379418,-1000000.0,0.00035985,30]
[340532672,1729419419393,-4000000.0,0.00035985,30]
[340532673,1729419423206,-4000000.0,0.00035985,30]
[340532674,1729419426811,-4000000.0,0.00035985,30]
[340532675,1729419438423,-4000000.0,0.00035985,30]
[340532676,1729419446749,-5000000.0,0.00035985,30]
[340532677,1729419451248,-5000000.0,0.00035985,30]
[340532678,1729419464165,-5000000.0,0.00035985,30]
[340532679,1729419467382,-5000000.0,0.00035985,30]
[340532680,1729419506461,-7314671.46462895,0.00035985,30]
[340532681,1729419506501,-1136.08540627,0.00035985,120]
[340532682,1729419506537,-5232.13227493,0.00035985,35]
[340532683,1729419506572,-2491.67643063,0.00035985,120]
[340532684,1729419506605,-175.7,0.00035985,90]
[340532685,1729419506638,-3000.0,0.00035985,120]
[340532686,1729419506671,-999.82478226,0.00035985,60]
[340532687,1729419506705,-458.90011919,0.00035985,120]
[340532688,1729419506738,-787.35174152,0.00035985,120]
[340532689,1729419506772,-906.2492234,0.00035985,120]
[340532690,1729419506805,-426.21018394,0.00035985,120]
[340532691,1729419506838,-1448.0,0.00035985,120]
[340532692,1729419506870,-890.9520204,0.00035985,35]
[340532693,1729419506902,-181.079147,0.00035985,30]
[340532694,1729419506933,-3471.71889526,0.00035985,120]
[340532695,1729419506965,-1000.0,0.00035985,120]
[340532696,1729419506999,-1000.0,0.00035985,120]
[340532697,1729419507032,-783.0,0.00035985,30]
[340532698,1729419507066,-100000.0,0.00035985,35]
[340532699,1729419507099,-100000.0,0.00035985,35]
[340532700,1729419507136,-50000.0,0.00035985,35]
[340532701,1729419507172,-100000.0,0.00035985,35]
[340532702,1729419507208,-52252.58309628,0.00035985,35]
[340532703,1729419507243,-753.099999,0.00035985,90]
[340532704,1729419507277,-356.299999,0.00035985,120]
[340532705,1729419507312,-2011.8499539,0.00035985,120]
[340532706,1729419507347,-354.97579119,0.00035985,90]
[340532707,1729419507383,-345.3022742,0.00035985,120]
[340532708,1729419507417,-1305.0,0.00035985,31]
[340532709,1729419507464,-206.0915744,0.00035985,30]
[340532710,1729419507504,-319.66,0.00035985,120]
[340532711,1729419507540,-2998.76184536,0.00035985,120]
[340532714,1729419971324,24880.0,0.0001031,2]
[340532717,1729420161643,8879.0,0.00023,60]
[340532797,1729420240746,-1089.4811394,0.0001053,2]
[340532798,1729420240758,-3609.0475152,0.00010631,2]
[340532799,1729420240771,-250.0,0.00010959,2]
[340532800,1729420240783,-217.49188044,0.00012067,2]
[340532801,1729420240793,-668.49298749,0.00012117,2]
[340532802,1729420240804,-300.0,0.00012166,2]
[340532803,1729420240816,-300.0,0.00012166,2]
[340532804,1729420240826,-527.49514369,0.00012167,2]
[340532805,1729420240838,-111943.16253087,0.00012167,2]
[340532806,1729420240857,-295.83716802,0.00012167,2]
[340540238,1729420498706,2929.6404121,0.00010311,2]
[340540239,1729420829050,3000.0,0.00010291,2]
[340540240,1729421133565,273.37336231,9.9e-05,2]
[340540241,1729421149350,273.37336231,9.9e-05,2]
[340540242,1729421166288,273.37336231,9.9e-05,2]
[340540243,1729421183039,273.37336231,9.9e-05,2]
[340540244,1729421198348,273.37336231,9.9e-05,2]
[340540245,1729421213969,273.37336231,9.9e-05,2]
[340540246,1729421222872,150.5,0.00013168,120]
[340540247,1729421223334,150.5,0.00013158,120]
[340540248,1729421223981,150.5,0.00013148,120]
[340540249,1729421229836,201.4435757,9.9e-05,2]
[340540251,1729421254226,-250.0,0.00010959,2]
[340540252,1729421254252,-244.82,0.00010959,2]
[340540253,1729421254277,-656.586708,0.00011118,2]
[340540254,1729421254302,-656.586708,0.00011121,2]
[340540255,1729421254328,-656.586708,0.00011124,2]
[340540256,1729421254353,-656.586708,0.00011127,2]
[340540257,1729421254378,-656.586708,0.0001113,2]
[340540258,1729421254403,-656.586708,0.00011133,2]
[340540259,1729421254427,-656.586708,0.00011136,2]
[340540260,1729421254451,-656.586708,0.00011139,2]
[340540261,1729421254478,-656.586708,0.00011142,2]
[340540262,1729421254503,-656.586708,0.00011145,2]
[340540263,1729421254534,-656.586708,0.00011148,2]
[340540264,1729421254559,-656.586708,0.0001115,2]
[340540265,1729421254584,-300.0,0.00011152,2]
[340540266,1729421254608,-656.586708,0.00011153,2]
[340540267,1729421254633,-656.586708,0.00011156,2]
[340540268,1729421254658,-656.586708,0.00011159,2]
[340540269,1729421254683,-656.586708,0.00011162,2]
[340540270,1729421254707,-656.586708,0.00011165,2]
[340540271,1729421254733,-656.586708,0.00011168,2]
[340540272,1729421254758,-656.586708,0.00011171,2]
[340540273,1729421254782,-161.766708,0.00011174,2]
[340540274,1729421286244,50000.0,0.0001,2]
[340540275,1729421342566,150.5,0.00013168,120]
[340540276,1729421342995,150.5,0.00013158,120]
[340540277,1729421343438,150.5,0.00013148,120]
[340540297,1729421431772,-494.82,0.00011174,2]
[340540299,1729421431783,-465.0000143,0.00011923,2]
[340540301,1729421431794,-217.49188044,0.00012057,2]
[340540303,1729421431805,-544.63122058,0.000121,2]
[340540306,1729421431824,-964.13834818,0.000121,2]
[340540309,1729421431841,-991.23043124,0.000121,2]
[340540311,1729421431851,-668.49298749,0.00012107,2]
[340540329,1729421432030,-300.0,0.00012156,2]
[340540331,1729421432045,-300.0,0.00012156,2]
[340540333,1729421432055,-527.49514369,0.00012156,2]
[340540334,1729421432065,-11503.25413598,0.00012157,2]
[340540362,1729421440254,-60101.60096572,0.00012157,2]
[340540363,1729421440266,-114831.023653,0.00012157,2]
[340540364,1729421440277,-94555.77892602,0.00012167,2]
[340540365,1729421440511,-854.87605106,0.00012167,2]
[340540378,1729421442907,-2869.64041206,0.00012167,2]
[340540428,1729421445974,-16126.03711144,0.00012167,2]
[340540787,1729421943572,150.5,0.00013168,120]
[340540788,1729421944428,150.5,0.00013158,120]
[340540789,1729421944578,167.8,0.00013148,120]
[340540790,1729422014256,170.886,0.00023,60]
[340540794,1729422301914,1000.0,0.00023,60]
[340540795,1729422324493,2127.85183757,0.00023,60]
[340540796,1729422362644,1000.0,0.00023,60]
[340540797,1729422551138,-805.18425928,0.00010423,2]
[340540834,1729422632019,-433.07229927,0.00010415,2]
[340540836,1729422632030,-500.10818062,0.00010423,2]
[340540837,1729422632041,-300.0,0.00010451,2]
[340540839,1729422632051,-300.0,0.00010451,2]
[340540841,1729422632061,-24146.24755191,0.00010452,2]
[340540873,1729422638335,-753.75244809,0.00010452,2]
[340540874,1729422638346,-250.0,0.00010515,2]
[340540875,1729422638356,-250.0,0.00010959,2]
[340540876,1729422638366,-153.27,0.00010959,2]
[340540877,1729422638376,-240.0,0.0001122,2]
[340540878,1729422638388,-420.0,0.00011491,2]
[340540879,1729422638399,-420.0,0.00011496,2]
[340540880,1729422638411,-320.679,0.00011843,2]
[340540881,1729422638422,-195.74269245,0.00011864,2]
[340540882,1729422638434,-210.6821207,0.00011918,2]
[340540883,1729422638445,-351.66342913,0.00011964,2]
[340540884,1729422638455,-22889.50274953,0.00011964,2]
[340540932,1729422640273,-148284.18307747,0.00011964,2]
[340540934,1729422640283,-121204.22046727,0.00011964,2]
[340540959,1729422643236,-3419.75830989,0.00011964,2]
[340540976,1729422720478,1000.0,0.00023,60]
[340540977,1729422721966,1000.0,0.00023,60]
[340540978,1729422723166,1000.0,0.00023,60]
[340540979,1729422724296,1000.0,0.00023,60]
[340540980,1729422731400,1000.0,0.00023,60]
[340540981,1729422734855,1000.0,0.00023,60]
[340540982,1729422736310,1000.0,0.00023,60]
[340540983,1729422737732,1000.0,0.00023,60]
[340540984,1729422740828,1000.0,0.00023,60]
[340540985,1729422741833,1000.0,0.00023,60]
[340540986,1729422774041,2070.69137846,0.00023,60]
[340540988,1729423023401,1000.0,0.00023,60]
[340540991,1729423170347,300.0,0.00023,60]
[340541000,1729423718065,979.04871718,0.0002,120]
[340541001,1729423719646,150.0,2.75e-05,120]
[340541002,1729423724744,150.0,0.0002102,62]
[340541117,1729423840435,-300.0,0.00010639,2]
[340541118,1729423840445,-300.0,0.00010639,2]
[340541119,1729423840454,-24880.0,0.0001064,2]
[340541120,1729423840463,-250.0,0.00010959,2]
[340541121,1729423840474,-623.17,0.00010959,2]
[340541122,1729423840483,-856.01,0.00010959,2]
[340541123,1729423840493,-181.5,0.00010959,2]
[340541124,1729423840502,-420.0,0.00011695,2]
[340541125,1729423840512,-420.0,0.00011703,2]
[340541126,1729423840522,-176.16842316,0.00011774,2]
[340541127,1729423840531,-601.64368875,0.00011854,2]
[340541128,1729423840540,-6291.91482069,0.00011872,2]
[340541129,1729423840551,-234.44228608,0.00011872,2]
[340541130,1729423840560,-46056.19095353,0.00011874,2]
[340541131,1729423840570,-256.543,0.00011874,2]
[340541132,1729423840579,-80802.3970674,0.00011923,2]
[340541133,1729423840589,-151.0,0.00011933,2]
[340541134,1729423840598,-151.0,0.00011933,2]
[340541135,1729423840608,-456.968133,0.00011933,2]
[340541136,1729423840617,-456.968133,0.00011933,2]
[340541137,1729423840627,-73095.418059,0.00011934,2]
[340541138,1729423840637,-32527.06898013,0.00011934,2]
[340541139,1729423840650,-48275.32808727,0.00011934,2]
[340541140,1729423840661,-151.0,0.00011934,2]
[340541141,1729423840671,-456.968133,0.00011934,2]
[340541142,1729423840681,-456.968133,0.00011934,2]
[340541143,1729423840690,-80802.3970674,0.00011934,2]
[340541144,1729423840699,-151.0,0.0001194,2]
[340541145,1729423840707,-456.968133,0.0001194,2]
[340541146,1729423840717,-456.968133,0.0001194,2]
[340541147,1729423840726,-36547.7090295,0.0001194,2]
[340541148,1729423840735,-80802.3970674,0.0001194,2]
[340541149,1729423840745,-73095.418059,0.00011944,2]
[340541150,1729423840754,-80802.3970674,0.00011944,2]
[340541151,1729423840765,-36547.7090295,0.00011944,2]
[340541152,1729423840775,-2088.966321,0.00011944,2]
[340541153,1729423840785,-2088.966321,0.00011944,2]
[340541154,1729423840795,-535.989125,0.00011944,2]
[340541155,1729423840805,-151.0,0.00011944,2]
[340541156,1729423840816,-535.989125,0.00011944,2]
[340541157,1729423840827,-151.0,0.00011944,2]
[340541158,1729423840836,-1771.085274,0.00011944,2]
[340541159,1729423840847,-1771.085274,0.00011944,2]
[340541160,1729423840858,-199.482366,0.00011944,2]
[340541161,1729423840870,-323.731414,0.00011944,2]
[340541162,1729423840880,-323.731414,0.00011944,2]
[340541163,1729423840889,-477.20484,0.00011944,2]
[340541164,1729423840899,-477.20484,0.00011944,2]
[340541165,1729423840909,-151.0,0.00011944,2]
[340541166,1729423840919,-151.0,0.00011944,2]
[340541167,1729423840929,-785.143582,0.00011944,2]
[340541168,1729423840939,-151.0,0.00011944,2]
[340541169,1729423840951,-785.143582,0.00011944,2]
[340541170,1729423840962,-151.0,0.00011944,2]
[340541171,1729423840972,-178.487062,0.00011944,2]
[340541172,1729423840983,-178.487062,0.00011944,2]
[340541173,1729423840993,-1269.801862,0.00011944,2]
[340541174,1729423841002,-1269.801862,0.00011944,2]
[340541175,1729423841012,-151.0,0.00011944,2]
[340541176,1729423841021,-235.369763,0.00011944,2]
[340541177,1729423841031,-235.369763,0.00011944,2]
[340541178,1729423841040,-754.770775,0.00011944,2]
[340541179,1729423841049,-206.434408,0.00011944,2]
[340541180,1729423841059,-754.770775,0.00011944,2]
[340541181,1729423841068,-206.434408,0.00011944,2]
[340541182,1729423841080,-151.0,0.00011944,2]
[340541183,1729423841093,-199.995233,0.00011944,2]
[340541184,1729423841103,-151.0,0.00011944,2]
[340541185,1729423841113,-151.0,0.00011944,2]
[340541186,1729423841123,-151.0,0.00011944,2]
[340541187,1729423841134,-151.0,0.00011944,2]
[340541188,1729423841144,-257.720286,0.00011944,2]
[340541189,1729423841153,-456.968133,0.00011944,2]
[340541190,1729423841162,-456.968133,0.00011944,2]
[340541191,1729423841172,-456.968133,0.00011944,2]
[340541192,1729423841181,-456.968133,0.00011944,2]
[340541193,1729423841190,-456.968133,0.00011944,2]
[340541194,1729423841199,-456.968133,0.00011944,2]
[340541195,1729423841209,-5014.943322,0.00011944,2]
[340541196,1729423841220,-2088.966321,0.0001195,2]
[340541197,1729423841242,-2088.966321,0.0001195,2]
[340541198,1729423841256,-535.989125,0.0001195,2]
[340541199,1729423841266,-151.0,0.0001195,2]
[340541200,1729423841276,-535.989125,0.0001195,2]
[340541201,1729423841288,-151.0,0.0001195,2]
[340541202,1729423841301,-1771.085274,0.0001195,2]
[340541203,1729423841313,-1771.085274,0.0001195,2]
[340541204,1729423841324,-323.731414,0.0001195,2]
[340541205,1729423841338,-323.731414,0.0001195,2]